[Event "Early-Titled-Tuesday-Blitz-January-16-2024"]
[Site "Chess.com"]
[Date "2024.01.16"]
[Round "9"]
[White "AlexPapasimakopoulos"]
[Black "adotand"]
[Result "1-0"]
[WhiteElo "2672"]
[BlackElo "2866"]
[TimeControl "180+1"]
[EndTime "9:48:46 PST"]
[Termination "AlexPapasimakopoulos won by resignation"]

1. d4 {[%clk 0:03:00.9]} 1... Nf6 {[%clk 0:03:00.2]} 2. c4 {[%clk 0:02:59.4]}
2... b6 {[%clk 0:03:00.1]} 3. f3 {[%clk 0:02:59.1]} 3... Bb7 {[%clk 0:03:00.4]}
4. e4 {[%clk 0:02:59.2]} 4... g6 {[%clk 0:03:00.1]} 5. e5 {[%clk 0:02:56.1]}
5... Nh5 {[%clk 0:02:56.5]} 6. Nc3 {[%clk 0:02:55.9]} 6... d6 {[%clk 0:02:56.9]}
7. g4 {[%clk 0:02:29.4]} 7... Ng7 {[%clk 0:02:50]} 8. exd6 {[%clk 0:02:27.1]}
8... exd6 {[%clk 0:02:48.7]} 9. Qe2+ {[%clk 0:02:19.4]} 9... Be7 {[%clk
0:02:47.2]} 10. Bg5 {[%clk 0:02:18.5]} 10... Nc6 {[%clk 0:02:42.1]} 11. Bxe7
{[%clk 0:02:17.7]} 11... Qxe7 {[%clk 0:02:39.6]} 12. Qxe7+ {[%clk 0:02:12]}
12... Kxe7 {[%clk 0:02:40.2]} 13. O-O-O {[%clk 0:02:08.1]} 13... h5 {[%clk
0:02:38]} 14. Nd5+ {[%clk 0:02:01.1]} 14... Kd8 {[%clk 0:02:38.3]} 15. Ne2
{[%clk 0:01:52.6]} 15... Ne7 {[%clk 0:02:31]} 16. Nec3 {[%clk 0:01:46.7]} 16...
Nxd5 {[%clk 0:02:26]} 17. cxd5 {[%clk 0:01:47]} 17... Bc8 {[%clk 0:02:24.5]} 18.
Be2 {[%clk 0:01:41.7]} 18... Bd7 {[%clk 0:02:24.8]} 19. Rde1 {[%clk 0:01:35.6]}
19... Ne8 {[%clk 0:02:03.8]} 20. Kd2 {[%clk 0:01:25.9]} 20... Rb8 {[%clk
0:01:54.4]} 21. a4 {[%clk 0:01:21.6]} 21... c6 {[%clk 0:01:30.1]} 22. dxc6
{[%clk 0:01:17.5]} 22... Bxc6 {[%clk 0:01:31]} 23. d5 {[%clk 0:01:18.1]} 23...
Bd7 {[%clk 0:01:31.2]} 24. h4 {[%clk 0:01:08.4]} 24... Rc8 {[%clk 0:01:27.7]}
25. b4 {[%clk 0:01:00.4]} 25... Nf6 {[%clk 0:01:23.2]} 26. g5 {[%clk 0:00:59.6]}
26... Ne8 {[%clk 0:01:23.8]} 27. Ba6 {[%clk 0:00:55]} 27... Rc7 {[%clk
0:01:21.7]} 28. Re3 {[%clk 0:00:48.8]} 28... Ng7 {[%clk 0:01:20.8]} 29. Bd3
{[%clk 0:00:49.4]} 29... Bf5 {[%clk 0:01:16.2]} 30. Nb5 {[%clk 0:00:46]} 30...
Rd7 {[%clk 0:01:15.8]} 31. Nd4 {[%clk 0:00:42.3]} 31... Bxd3 {[%clk 0:01:15.8]}
32. Kxd3 {[%clk 0:00:41.7]} 32... Kc7 {[%clk 0:01:13.4]} 33. Rhe1 {[%clk
0:00:31.7]} 33... Rf8 {[%clk 0:01:04.2]} 34. Re7 {[%clk 0:00:30.5]} 34... Rd8
{[%clk 0:00:49.6]} 35. a5 {[%clk 0:00:23]} 35... bxa5 {[%clk 0:00:31]} 36. bxa5
{[%clk 0:00:23.9]} 36... a6 {[%clk 0:00:28.5]} 37. R7e2 {[%clk 0:00:20.4]} 37...
Rc8 {[%clk 0:00:24.7]} 38. Rb1 {[%clk 0:00:17.5]} 38... Nf5 {[%clk 0:00:21.9]}
39. Nxf5 {[%clk 0:00:11.9]} 39... gxf5 {[%clk 0:00:22.8]} 40. Rc2+ {[%clk
0:00:11.8]} 40... Kd8 {[%clk 0:00:23.2]} 41. Rxc8+ {[%clk 0:00:11.5]} 41... Kxc8
{[%clk 0:00:24.1]} 42. Rb6 {[%clk 0:00:11.7]} 42... f4 {[%clk 0:00:22.5]} 43.
Rxa6 {[%clk 0:00:11.3]} 43... Re7 {[%clk 0:00:23.1]} 44. Rxd6 {[%clk 0:00:10.2]}
44... Re3+ {[%clk 0:00:23.8]} 45. Kd4 {[%clk 0:00:10.8]} 45... Rxf3 {[%clk
0:00:24.6]} 46. Rf6 {[%clk 0:00:11.3]} 46... Rf1 {[%clk 0:00:21.3]} 47. a6
{[%clk 0:00:11.3]} 47... f3 {[%clk 0:00:21.3]} 48. Ke3 {[%clk 0:00:11.5]} 48...
Kb8 {[%clk 0:00:20.1]} 49. Rxf7 {[%clk 0:00:11.3]} 49... Re1+ {[%clk 0:00:20.4]}
50. Kf2 {[%clk 0:00:10.5]} 50... Rd1 {[%clk 0:00:18.3]} 51. Rf5 {[%clk 0:00:11]}
51... Rd4 {[%clk 0:00:18]} 52. g6 {[%clk 0:00:07.1]} 52... Rxh4 {[%clk
0:00:12.2]} 53. Rg5 {[%clk 0:00:07.4]} 1-0

[Event "Early-Titled-Tuesday-Blitz-January-16-2024"]
[Site "Chess.com"]
[Date "2024.01.16"]
[Round "9"]
[White "starworld123"]
[Black "ylr5000"]
[Result "1-0"]
[WhiteElo "2846"]
[BlackElo "2479"]
[TimeControl "180+1"]
[EndTime "9:48:47 PST"]
[Termination "starworld123 won on time"]

1. Nf3 {[%clk 0:03:00.9]} 1... c5 {[%clk 0:02:58.3]} 2. e3 {[%clk 0:03:00]} 2...
Nf6 {[%clk 0:02:58.1]} 3. d4 {[%clk 0:02:59.7]} 3... cxd4 {[%clk 0:02:56.8]} 4.
exd4 {[%clk 0:02:59.8]} 4... g6 {[%clk 0:02:57.4]} 5. c3 {[%clk 0:02:58.1]} 5...
Bg7 {[%clk 0:02:57.8]} 6. Be2 {[%clk 0:02:58.7]} 6... O-O {[%clk 0:02:58.3]} 7.
O-O {[%clk 0:02:59.4]} 7... b6 {[%clk 0:02:58.4]} 8. Ne5 {[%clk 0:02:51.9]} 8...
Bb7 {[%clk 0:02:58.6]} 9. Bf3 {[%clk 0:02:52.6]} 9... Qc7 {[%clk 0:02:58.1]} 10.
Na3 {[%clk 0:02:44.9]} 10... d6 {[%clk 0:02:51.6]} 11. Nd3 {[%clk 0:02:39.8]}
11... Nbd7 {[%clk 0:02:48.5]} 12. Re1 {[%clk 0:02:37.4]} 12... Rfe8 {[%clk
0:02:48.3]} 13. Bf4 {[%clk 0:02:28.5]} 13... a6 {[%clk 0:02:45.3]} 14. Nc2
{[%clk 0:02:21.3]} 14... Rac8 {[%clk 0:02:40.4]} 15. Bg3 {[%clk 0:02:08.1]}
15... Qb8 {[%clk 0:02:39.8]} 16. a4 {[%clk 0:02:06.5]} 16... Qa8 {[%clk
0:02:38.3]} 17. Bxb7 {[%clk 0:02:06.7]} 17... Qxb7 {[%clk 0:02:39.2]} 18. Qd2
{[%clk 0:02:01.7]} 18... Ne4 {[%clk 0:02:26.8]} 19. Qe3 {[%clk 0:02:00.6]} 19...
Nxg3 {[%clk 0:02:27.1]} 20. Qxg3 {[%clk 0:02:01.5]} 20... Nf6 {[%clk 0:02:20.7]}
21. Re2 {[%clk 0:01:56.6]} 21... Rc7 {[%clk 0:02:16.3]} 22. Rae1 {[%clk
0:01:56.5]} 22... Rec8 {[%clk 0:02:15.2]} 23. Ndb4 {[%clk 0:01:49.6]} 23... d5
{[%clk 0:01:39.4]} 24. Qd3 {[%clk 0:01:43.7]} 24... Ra8 {[%clk 0:01:38.9]} 25.
Ne3 {[%clk 0:01:38.6]} 25... e6 {[%clk 0:01:37.8]} 26. g3 {[%clk 0:01:37.4]}
26... Bf8 {[%clk 0:01:32.3]} 27. Nec2 {[%clk 0:01:24.3]} 27... b5 {[%clk
0:01:08.6]} 28. a5 {[%clk 0:01:15.2]} 28... Rac8 {[%clk 0:01:02]} 29. Qd1 {[%clk
0:01:04.9]} 29... Bxb4 {[%clk 0:00:56.2]} 30. Nxb4 {[%clk 0:01:04.7]} 30... Rc4
{[%clk 0:00:51]} 31. Nd3 {[%clk 0:01:02.8]} 31... Qc7 {[%clk 0:00:51.3]} 32. Qa1
{[%clk 0:00:56.2]} 32... Nd7 {[%clk 0:00:48.5]} 33. h4 {[%clk 0:00:50.5]} 33...
Ra4 {[%clk 0:00:39.4]} 34. Qc1 {[%clk 0:00:46.6]} 34... Qxa5 {[%clk 0:00:32.7]}
35. h5 {[%clk 0:00:42.6]} 35... Qd8 {[%clk 0:00:31.9]} 36. b3 {[%clk 0:00:24.1]}
36... Rxd4 {[%clk 0:00:30.9]} 37. cxd4 {[%clk 0:00:21.7]} 37... Rxc1 {[%clk
0:00:31.2]} 38. Rxc1 {[%clk 0:00:22.6]} 38... Kg7 {[%clk 0:00:28.2]} 39. Rec2
{[%clk 0:00:21.6]} 39... gxh5 {[%clk 0:00:19.7]} 40. Rc7 {[%clk 0:00:20.7]}
40... a5 {[%clk 0:00:19.4]} 41. Ra7 {[%clk 0:00:15.2]} 41... a4 {[%clk
0:00:17.9]} 42. bxa4 {[%clk 0:00:16.1]} 42... bxa4 {[%clk 0:00:18.2]} 43. Rcc7
{[%clk 0:00:16.8]} 43... Nf6 {[%clk 0:00:14.2]} 44. Rxf7+ {[%clk 0:00:17.4]}
44... Kg6 {[%clk 0:00:13.6]} 45. Nf4+ {[%clk 0:00:15.5]} 45... Kf5 {[%clk
0:00:14.1]} 46. Nxh5 {[%clk 0:00:15.5]} 46... Ke4 {[%clk 0:00:13.7]} 47. Nxf6+
{[%clk 0:00:14.7]} 47... Kxd4 {[%clk 0:00:14.2]} 48. Rxa4+ {[%clk 0:00:15]}
48... Kd3 {[%clk 0:00:13.8]} 49. Ng4 {[%clk 0:00:14.5]} 49... Qb8 {[%clk
0:00:13.2]} 50. Rf3+ {[%clk 0:00:14.9]} 50... Kc2 {[%clk 0:00:10.8]} 51. Ra2+
{[%clk 0:00:15.3]} 51... Kb1 {[%clk 0:00:11.2]} 52. Re2 {[%clk 0:00:15]} 52...
Qb4 {[%clk 0:00:09.7]} 53. Rd3 {[%clk 0:00:13.6]} 53... Kc1 {[%clk 0:00:08.8]}
54. Ne3 {[%clk 0:00:13]} 1-0

[Event "Early-Titled-Tuesday-Blitz-January-16-2024"]
[Site "Chess.com"]
[Date "2024.01.16"]
[Round "9"]
[White "bancsoo"]
[Black "Seochesspie"]
[Result "1/2-1/2"]
[WhiteElo "2931"]
[BlackElo "2824"]
[TimeControl "180+1"]
[EndTime "9:48:48 PST"]
[Termination "Game drawn - insufficient material"]

1. Nf3 {[%clk 0:03:00.9]} 1... d5 {[%clk 0:03:00]} 2. g3 {[%clk 0:03:01]} 2...
Nc6 {[%clk 0:02:58.2]} 3. d4 {[%clk 0:03:00.8]} 3... Bf5 {[%clk 0:02:57.8]} 4.
Bg2 {[%clk 0:03:01.2]} 4... Nb4 {[%clk 0:02:57.2]} 5. Na3 {[%clk 0:03:01.4]}
5... e6 {[%clk 0:02:57.6]} 6. O-O {[%clk 0:03:01.5]} 6... Nc6 {[%clk 0:02:57.4]}
7. Nb1 {[%clk 0:03:01.1]} 7... Nb4 {[%clk 0:02:57.1]} 8. Ne1 {[%clk 0:03:01.5]}
8... Nf6 {[%clk 0:02:55.9]} 9. c3 {[%clk 0:03:01.3]} 9... Nc6 {[%clk 0:02:56]}
10. Bg5 {[%clk 0:03:01.4]} 10... Be7 {[%clk 0:02:55.9]} 11. Nd2 {[%clk
0:03:01.1]} 11... O-O {[%clk 0:02:55.7]} 12. Bxf6 {[%clk 0:03:00.5]} 12... Bxf6
{[%clk 0:02:55.8]} 13. e4 {[%clk 0:03:01.1]} 13... dxe4 {[%clk 0:02:56.7]} 14.
Nxe4 {[%clk 0:03:01.2]} 14... Be7 {[%clk 0:02:54.6]} 15. Nd3 {[%clk 0:03:01]}
15... Rb8 {[%clk 0:02:41.6]} 16. Qe2 {[%clk 0:02:59.8]} 16... Bd6 {[%clk
0:02:41.4]} 17. Rad1 {[%clk 0:02:58.8]} 17... Ne7 {[%clk 0:02:41.5]} 18. h4
{[%clk 0:02:55.9]} 18... c6 {[%clk 0:02:40.1]} 19. Rfe1 {[%clk 0:02:51.4]} 19...
Nd5 {[%clk 0:02:39.6]} 20. Ne5 {[%clk 0:02:48.6]} 20... h6 {[%clk 0:02:32.8]}
21. c4 {[%clk 0:02:39.4]} 21... Nf6 {[%clk 0:02:32.2]} 22. Nxf6+ {[%clk
0:02:35.1]} 22... gxf6 {[%clk 0:02:32.2]} 23. Ng4 {[%clk 0:02:21.8]} 23... Kg7
{[%clk 0:02:31.3]} 24. Ne3 {[%clk 0:02:20.8]} 24... Bg6 {[%clk 0:02:28.9]} 25.
d5 {[%clk 0:02:20.6]} 25... cxd5 {[%clk 0:02:28.9]} 26. cxd5 {[%clk 0:02:20.8]}
26... Qe7 {[%clk 0:02:16.8]} 27. dxe6 {[%clk 0:02:14.9]} 27... fxe6 {[%clk
0:02:17]} 28. Nc4 {[%clk 0:02:13.8]} 28... Bb4 {[%clk 0:02:16.3]} 29. Qxe6
{[%clk 0:02:11.9]} 29... Qxe6 {[%clk 0:02:13.3]} 30. Rxe6 {[%clk 0:02:12.7]}
30... Rfd8 {[%clk 0:02:06.8]} 31. Rxd8 {[%clk 0:02:03.5]} 31... Rxd8 {[%clk
0:02:06.8]} 32. Bxb7 {[%clk 0:01:40.9]} 32... Rd1+ {[%clk 0:01:53.4]} 33. Kg2
{[%clk 0:01:39.5]} 33... Bf7 {[%clk 0:01:49.2]} 34. Re4 {[%clk 0:01:18.8]} 34...
Rd7 {[%clk 0:01:46.6]} 35. Ba8 {[%clk 0:01:18.1]} 35... Bc5 {[%clk 0:01:25.2]}
36. b4 {[%clk 0:00:41.2]} 36... Bxb4 {[%clk 0:01:21.6]} 37. Ne5 {[%clk
0:00:41.4]} 37... fxe5 {[%clk 0:01:18.2]} 38. Rxb4 {[%clk 0:00:40.6]} 38... Bxa2
{[%clk 0:01:18.8]} 39. Be4 {[%clk 0:00:29.1]} 39... Bf7 {[%clk 0:01:08.6]} 40.
Kf3 {[%clk 0:00:21.3]} 40... a5 {[%clk 0:01:04.3]} 41. Rb5 {[%clk 0:00:21.1]}
41... Ra7 {[%clk 0:01:04.4]} 42. Bd5 {[%clk 0:00:09.6]} 42... Bxd5+ {[%clk
0:00:50.7]} 43. Rxd5 {[%clk 0:00:09.8]} 43... Kf6 {[%clk 0:00:51.5]} 44. Ke4
{[%clk 0:00:09.8]} 44... a4 {[%clk 0:00:51.8]} 45. Rd6+ {[%clk 0:00:09.2]} 45...
Kg7 {[%clk 0:00:49.2]} 46. Kxe5 {[%clk 0:00:09]} 46... a3 {[%clk 0:00:49.7]} 47.
Rd1 {[%clk 0:00:09.7]} 47... a2 {[%clk 0:00:50]} 48. Ra1 {[%clk 0:00:10.4]}
48... Ra3 {[%clk 0:00:47.8]} 49. Kd4 {[%clk 0:00:09.6]} 49... Kg6 {[%clk
0:00:47]} 50. Kc4 {[%clk 0:00:10.1]} 50... Kf5 {[%clk 0:00:43.1]} 51. Kb4 {[%clk
0:00:09.1]} 51... Ra8 {[%clk 0:00:43.1]} 52. Kb3 {[%clk 0:00:09.4]} 52... Rb8+
{[%clk 0:00:34.9]} 53. Kxa2 {[%clk 0:00:09.7]} 53... Kg4 {[%clk 0:00:35.6]} 54.
Rb1 {[%clk 0:00:10.4]} 54... Ra8+ {[%clk 0:00:35.4]} 55. Kb3 {[%clk 0:00:10.9]}
55... Kf3 {[%clk 0:00:34.5]} 56. Rb2 {[%clk 0:00:11.5]} 56... h5 {[%clk
0:00:31.6]} 57. Kc3 {[%clk 0:00:11.6]} 57... Rd8 {[%clk 0:00:31.2]} 58. Rd2
{[%clk 0:00:11.3]} 58... Rxd2 {[%clk 0:00:31]} 59. Kxd2 {[%clk 0:00:09.3]} 59...
Kxf2 {[%clk 0:00:31.7]} 60. Kd1 {[%clk 0:00:09.8]} 60... Kxg3 {[%clk 0:00:31.8]}
61. Ke2 {[%clk 0:00:10.4]} 61... Kxh4 {[%clk 0:00:31.4]} 62. Kf1 {[%clk
0:00:11]} 62... Kg5 {[%clk 0:00:31.5]} 63. Kg1 {[%clk 0:00:11.9]} 63... Kf6
{[%clk 0:00:32.1]} 64. Kh1 {[%clk 0:00:12.6]} 64... Ke7 {[%clk 0:00:32.9]} 65.
Kg1 {[%clk 0:00:13.3]} 65... Kd8 {[%clk 0:00:33.8]} 66. Kh1 {[%clk 0:00:14.2]}
66... Kc7 {[%clk 0:00:34.4]} 67. Kg1 {[%clk 0:00:15.1]} 67... Kb8 {[%clk
0:00:35.1]} 68. Kh1 {[%clk 0:00:16]} 68... Ka7 {[%clk 0:00:35.6]} 69. Kh2 {[%clk
0:00:16.9]} 69... Kb6 {[%clk 0:00:36.4]} 70. Kh3 {[%clk 0:00:17.8]} 70... Ka7
{[%clk 0:00:36.8]} 71. Kh4 {[%clk 0:00:18.7]} 71... Kb8 {[%clk 0:00:37.2]} 72.
Kxh5 {[%clk 0:00:19.6]} 1/2-1/2

[Event "Early-Titled-Tuesday-Blitz-January-16-2024"]
[Site "Chess.com"]
[Date "2024.01.16"]
[Round "9"]
[White "inneremptiness"]
[Black "jk13"]
[Result "1-0"]
[WhiteElo "2885"]
[BlackElo "2694"]
[TimeControl "180+1"]
[EndTime "9:49:03 PST"]
[Termination "inneremptiness won by resignation"]

1. e4 {[%clk 0:03:00.9]} 1... e5 {[%clk 0:02:41.7]} 2. Nf3 {[%clk 0:03:00.5]}
2... Nc6 {[%clk 0:02:41.6]} 3. d4 {[%clk 0:03:00.1]} 3... exd4 {[%clk
0:02:41.4]} 4. Nxd4 {[%clk 0:03:00.6]} 4... Bb4+ {[%clk 0:02:41.9]} 5. c3 {[%clk
0:03:00.1]} 5... Bc5 {[%clk 0:02:42.5]} 6. Be3 {[%clk 0:03:00.6]} 6... Bb6
{[%clk 0:02:43]} 7. Nf5 {[%clk 0:02:59.2]} 7... Bxe3 {[%clk 0:02:42.9]} 8. Nxe3
{[%clk 0:02:59.9]} 8... Nge7 {[%clk 0:02:42.8]} 9. Bc4 {[%clk 0:02:54.6]} 9...
O-O {[%clk 0:02:43.7]} 10. O-O {[%clk 0:02:54.5]} 10... d6 {[%clk 0:02:42.8]}
11. Nd2 {[%clk 0:02:53.7]} 11... Be6 {[%clk 0:02:38]} 12. Bxe6 {[%clk
0:02:50.5]} 12... fxe6 {[%clk 0:02:37.9]} 13. Qb3 {[%clk 0:02:51]} 13... Qc8
{[%clk 0:02:38.4]} 14. f4 {[%clk 0:02:50.4]} 14... Kh8 {[%clk 0:02:31.1]} 15.
Rae1 {[%clk 0:02:49.3]} 15... Qd7 {[%clk 0:02:25.2]} 16. g3 {[%clk 0:02:43.5]}
16... d5 {[%clk 0:02:13.3]} 17. Nf3 {[%clk 0:02:30.3]} 17... Qd6 {[%clk
0:02:03.6]} 18. Ng5 {[%clk 0:02:11.4]} 18... Rad8 {[%clk 0:01:34.2]} 19. e5
{[%clk 0:01:23.7]} 19... Qd7 {[%clk 0:01:31.2]} 20. Qc2 {[%clk 0:01:23.9]} 20...
g6 {[%clk 0:01:11.4]} 21. Ng4 {[%clk 0:01:23.5]} 21... Ng8 {[%clk 0:01:08]} 22.
Qg2 {[%clk 0:01:17.7]} 22... Nce7 {[%clk 0:01:02.9]} 23. Ne3 {[%clk 0:00:50.7]}
23... Nf5 {[%clk 0:00:59.4]} 24. Nxf5 {[%clk 0:00:50.8]} 24... Rxf5 {[%clk
0:00:39.8]} 25. Nf3 {[%clk 0:00:45.4]} 25... c5 {[%clk 0:00:38.8]} 26. Rd1
{[%clk 0:00:44.5]} 26... Rff8 {[%clk 0:00:35.3]} 27. Qh3 {[%clk 0:00:43.4]}
27... Ne7 {[%clk 0:00:31.6]} 28. Ng5 {[%clk 0:00:43.6]} 28... Nf5 {[%clk
0:00:31.9]} 29. g4 {[%clk 0:00:44.2]} 29... Nd6 {[%clk 0:00:16]} 30. exd6 {[%clk
0:00:42.1]} 30... Rf6 {[%clk 0:00:14.6]} 31. Rde1 {[%clk 0:00:24.2]} 31... Rdf8
{[%clk 0:00:13.2]} 32. Qh6 {[%clk 0:00:24.7]} 32... Kg8 {[%clk 0:00:11.8]} 33.
Re5 {[%clk 0:00:21.5]} 33... d4 {[%clk 0:00:08.2]} 34. cxd4 {[%clk 0:00:20.7]}
34... cxd4 {[%clk 0:00:09.1]} 35. Qh3 {[%clk 0:00:21]} 35... d3 {[%clk
0:00:07.3]} 36. Qxd3 {[%clk 0:00:20.2]} 36... Rxf4 {[%clk 0:00:08]} 37. Rxf4
{[%clk 0:00:19.8]} 37... Rxf4 {[%clk 0:00:08.9]} 38. h3 {[%clk 0:00:18.6]} 38...
Rf6 {[%clk 0:00:04.1]} 39. Ne4 {[%clk 0:00:17.8]} 39... Rf4 {[%clk 0:00:03.8]}
40. Ng5 {[%clk 0:00:17.6]} 40... Rf6 {[%clk 0:00:03.5]} 41. Re1 {[%clk
0:00:14.2]} 41... Kg7 {[%clk 0:00:03.3]} 42. Qd4 {[%clk 0:00:12.7]} 42... e5
{[%clk 0:00:02.6]} 43. Qxe5 {[%clk 0:00:13.2]} 43... Qxd6 {[%clk 0:00:02.5]} 44.
Qxd6 {[%clk 0:00:12.9]} 44... Rxd6 {[%clk 0:00:03.4]} 45. h4 {[%clk 0:00:11.2]}
45... Rd7 {[%clk 0:00:03]} 46. Re2 {[%clk 0:00:11.5]} 46... h6 {[%clk
0:00:03.3]} 47. Nf3 {[%clk 0:00:10.4]} 47... Rf7 {[%clk 0:00:02.8]} 48. Kg2
{[%clk 0:00:10.2]} 48... Rf4 {[%clk 0:00:02.5]} 49. Kg3 {[%clk 0:00:09.9]} 49...
Rf7 {[%clk 0:00:03.2]} 50. Re6 {[%clk 0:00:10]} 50... Rc7 {[%clk 0:00:03.6]} 51.
g5 {[%clk 0:00:10.3]} 51... hxg5 {[%clk 0:00:03.5]} 52. hxg5 {[%clk 0:00:11.2]}
52... Rc2 {[%clk 0:00:03.7]} 53. Re7+ {[%clk 0:00:11.3]} 53... Kf8 {[%clk
0:00:04.1]} 54. Rxb7 {[%clk 0:00:12.2]} 54... a5 {[%clk 0:00:03.9]} 55. a4
{[%clk 0:00:11.7]} 55... Rc4 {[%clk 0:00:03.8]} 56. b3 {[%clk 0:00:11.5]} 56...
Re4 {[%clk 0:00:03.7]} 57. Rb5 {[%clk 0:00:11.2]} 57... Re3 {[%clk 0:00:03.4]}
58. Kf4 {[%clk 0:00:11.8]} 58... Rd3 {[%clk 0:00:03.7]} 59. Ne5 {[%clk 0:00:12]}
59... Rd4+ {[%clk 0:00:03.6]} 60. Ke3 {[%clk 0:00:12.8]} 60... Rh4 {[%clk
0:00:03.5]} 61. Nxg6+ {[%clk 0:00:13]} 61... Kg7 {[%clk 0:00:04]} 62. Nxh4
{[%clk 0:00:13.5]} 1-0

[Event "Early-Titled-Tuesday-Blitz-January-16-2024"]
[Site "Chess.com"]
[Date "2024.01.16"]
[Round "9"]
[White "Kirill_Klukin"]
[Black "Makswolf200817"]
[Result "1-0"]
[WhiteElo "2864"]
[BlackElo "2663"]
[TimeControl "180+1"]
[EndTime "9:49:03 PST"]
[Termination "Kirill_Klukin won on time"]

1. e4 {[%clk 0:03:00.9]} 1... e6 {[%clk 0:03:00]} 2. d3 {[%clk 0:02:59.9]} 2...
d5 {[%clk 0:03:00.3]} 3. Nd2 {[%clk 0:03:00.3]} 3... Nf6 {[%clk 0:02:59.9]} 4.
Ngf3 {[%clk 0:03:00.5]} 4... Be7 {[%clk 0:03:00.5]} 5. g3 {[%clk 0:03:01]} 5...
a5 {[%clk 0:03:01.1]} 6. Bg2 {[%clk 0:03:01.2]} 6... a4 {[%clk 0:03:01.7]} 7.
O-O {[%clk 0:02:59.8]} 7... a3 {[%clk 0:03:01.5]} 8. b3 {[%clk 0:02:57.2]} 8...
O-O {[%clk 0:02:56.1]} 9. Qe2 {[%clk 0:02:53.8]} 9... h6 {[%clk 0:02:54.3]} 10.
Re1 {[%clk 0:02:51.9]} 10... Nc6 {[%clk 0:02:45.8]} 11. c3 {[%clk 0:02:46.2]}
11... d4 {[%clk 0:02:41.3]} 12. cxd4 {[%clk 0:02:24.9]} 12... Nxd4 {[%clk
0:02:40.9]} 13. Nxd4 {[%clk 0:02:25.6]} 13... Qxd4 {[%clk 0:02:41.6]} 14. Rb1
{[%clk 0:02:26.3]} 14... Rd8 {[%clk 0:02:41.1]} 15. Bf1 {[%clk 0:02:26.6]} 15...
e5 {[%clk 0:01:57.7]} 16. Nf3 {[%clk 0:02:24.1]} 16... Qd6 {[%clk 0:01:57.6]}
17. d4 {[%clk 0:02:17.2]} 17... Nd7 {[%clk 0:01:47.1]} 18. dxe5 {[%clk
0:02:12.7]} 18... Nxe5 {[%clk 0:01:47]} 19. Nxe5 {[%clk 0:02:13.1]} 19... Qxe5
{[%clk 0:01:46.6]} 20. Bf4 {[%clk 0:02:13.9]} 20... Qa5 {[%clk 0:01:45.6]} 21.
Qc2 {[%clk 0:01:59.8]} 21... c6 {[%clk 0:01:44.9]} 22. Bc4 {[%clk 0:01:59.1]}
22... Bg4 {[%clk 0:01:38.3]} 23. Be2 {[%clk 0:01:30.1]} 23... Bxe2 {[%clk
0:01:32.3]} 24. Qxe2 {[%clk 0:01:30]} 24... Bf6 {[%clk 0:01:17.1]} 25. Kg2
{[%clk 0:01:26.1]} 25... Rd7 {[%clk 0:01:05.5]} 26. Bxh6 {[%clk 0:01:21.4]}
26... Bc3 {[%clk 0:00:55.7]} 27. Rf1 {[%clk 0:01:14.5]} 27... Rad8 {[%clk
0:00:49.1]} 28. Be3 {[%clk 0:01:03.3]} 28... Qb4 {[%clk 0:00:45.7]} 29. Qf3
{[%clk 0:00:56.5]} 29... Re8 {[%clk 0:00:43.4]} 30. Rbd1 {[%clk 0:00:53]} 30...
Rde7 {[%clk 0:00:37.4]} 31. Rd3 {[%clk 0:00:45.1]} 31... Bf6 {[%clk 0:00:34.3]}
32. Rfd1 {[%clk 0:00:44.9]} 32... Qxe4 {[%clk 0:00:34]} 33. Rd7 {[%clk
0:00:43.3]} 33... Rxd7 {[%clk 0:00:22.1]} 34. Rxd7 {[%clk 0:00:42.9]} 34... Qb1
{[%clk 0:00:22.6]} 35. Qe2 {[%clk 0:00:26.4]} 35... b5 {[%clk 0:00:17.5]} 36. h4
{[%clk 0:00:17]} 36... Bb2 {[%clk 0:00:17]} 37. Qf3 {[%clk 0:00:17.2]} 37... Bf6
{[%clk 0:00:13.1]} 38. Rd2 {[%clk 0:00:14.4]} 38... Qe4 {[%clk 0:00:06.9]} 39.
Qxe4 {[%clk 0:00:13.6]} 39... Rxe4 {[%clk 0:00:07.8]} 40. Rc2 {[%clk 0:00:14.5]}
40... Re6 {[%clk 0:00:07.8]} 41. Bc1 {[%clk 0:00:12]} 41... Be7 {[%clk
0:00:07.8]} 42. Bd2 {[%clk 0:00:12.4]} 42... f5 {[%clk 0:00:05.8]} 43. Kf3
{[%clk 0:00:12]} 43... g6 {[%clk 0:00:05.3]} 44. Bc1 {[%clk 0:00:12.2]} 44...
Kf7 {[%clk 0:00:04.6]} 45. Be3 {[%clk 0:00:11.7]} 45... Rd6 {[%clk 0:00:04.6]}
46. Bc5 {[%clk 0:00:11.1]} 46... Rd1 {[%clk 0:00:03]} 47. Bxe7 {[%clk
0:00:09.1]} 47... Kxe7 {[%clk 0:00:03.9]} 48. Rxc6 {[%clk 0:00:09.6]} 48... Rd2
{[%clk 0:00:04.5]} 49. Rb6 {[%clk 0:00:08.1]} 49... Rxa2 {[%clk 0:00:04.3]} 50.
Rxb5 {[%clk 0:00:08.7]} 50... Rb2 {[%clk 0:00:05]} 51. Kg2 {[%clk 0:00:04.9]}
51... Kf6 {[%clk 0:00:02.7]} 52. b4 {[%clk 0:00:04.8]} 52... a2 {[%clk
0:00:02.9]} 53. Ra5 {[%clk 0:00:05.4]} 53... Kg7 {[%clk 0:00:02.2]} 54. Kf3
{[%clk 0:00:05.2]} 54... Kh6 {[%clk 0:00:02.1]} 55. Ra6 {[%clk 0:00:04.6]} 55...
Kh5 {[%clk 0:00:02.4]} 56. Kg2 {[%clk 0:00:05.2]} 1-0